{"text_format":"2","workbook":"xlsx","n_sheets":3,"sheets":["Foglio1","Foglio2","Foglio3"],"not_rendered":{"charts":0,"images":0,"macros":0,"external_links":0,"defined_names":0,"comments":0,"pivot_tables":0},"unopened":[],"bounds":{"document_bytes":16777216,"sheet_cells":100000,"run_cost":"one","rows_first":2000,"rows_last":500,"rows_between":2000,"halvings":0,"cell_chars":16384,"cell_head_chars":4096},"cells_cut":0,"cells_raw":0,"read":"whole","date_system":"1900"}

{"sheet":"Foglio1","index":0,"n_rows":36,"n_cols":8,"rows_kept":36,"cut":false,"hidden":false,"merged":[]}
["PLAYER","NICKNAME",null,"AL 44° OPEN",null,"AL 31° CAMPIONATO",null,"TOTALE"]
["LUCA MAISTO","POPEYE",null,2,null,6,null,{"$f":"SUM(D2:F2)","v":8}]
["ANGELO SOLIMINI","RISKANGIOLETTO",null,4,null,2,null,6]
[" EBRAHIM YOUSEFIAN","RAMSIN",null,3,null,3,null,6]
["FRANCESCO LAI",null,null,1,null,5,null,6]
["ANTONIO RUOSI","THEMADMAN",null,2,null,3,null,5]
["LETIZIA SERRONE","LETI 64",null,2,null,3,null,5]
["SIMONE MAISTO","TIGROTTINO",null,2,null,3,null,5]
["EDOARDO MUSUMECI","EDOMUSU 91",null,null,null,4,null,4]
["LORENZO PADOVANI","NIGHTMARE",null,2,null,2,null,4]
["ORFEA PEPE",{"$nulls":4},4,null,4]
["ROBERO CONVENEVOLE","SMILE",null,2,null,2,null,4]
["ANDREA PIACENTINI","ULISSE 1970",null,1,null,2,null,3]
["DANILO ORSINI","ORSINIDAN",null,1,null,2,null,3]
["EMANUELE IANNUZZI",null,null,2,null,1,null,3]
["GIUSEPPE SANTO","JOSEPH 72",null,2,null,1,null,3]
["MARCO DE SIMONE","VOYAGER",null,2,null,1,null,3]
["MICHELE MORELLI","SARACENO",null,null,null,3,null,3]
["ANGELO DOMINICI","2BAD4YOU",null,null,null,2,null,2]
["EUGENIO MUSUMECI","EUGMUS",null,2,null,null,null,2]
["LEONARDO PAZZAGLI","LEOPAZZA",null,1,null,1,null,2]
["MASSIMO CALOGERO","RANDAL60",null,1,null,1,null,2]
["RAFFAELE VALENTINO",{"$nulls":4},2,null,2]
["ROBERTO PADOVANI","RPANOVAN",null,1,null,null,null,1]
["DANILO VANGELISTA","DANILOV",null,1,null,null,null,1]
["EDOARDO CORTESE","DADELE",null,null,null,1,null,1]
["IVAN MONACO","IVANOVICH",null,null,null,1,null,1]
["MASSIMO CAMPANELLA","PATTYLOKNESS",null,1,null,null,null,1]
["PAOLO MUSUMECI",{"$nulls":4},1,null,1]
["RAFFAELE RIDOLFI",{"$nulls":4},1,null,1]
["SIMONE DI BARTOLOMEO","ERCARTINA",null,null,null,1,null,1]
["STEFANO BRACCI","MORULA",null,1,null,null,null,1]
["CHIARA MESSORE","RISKIARETTA",{"$nulls":5},0]
["DANIELE DI RENZI","IL CAIMANO",{"$nulls":5},0]
["LORENZO COLASANTE","UNO UNO UNO",{"$nulls":5},0]
["LUCA SIMONE ","LUCASSSSSSSSSSSS",{"$nulls":5},0]

{"sheet":"Foglio2","index":1,"n_rows":0,"n_cols":0,"rows_kept":0,"cut":false,"hidden":false,"merged":[]}

{"sheet":"Foglio3","index":2,"n_rows":0,"n_cols":0,"rows_kept":0,"cut":false,"hidden":false,"merged":[]}